fUSD/lending_fUSD_20250110
["ID","MTS","AMOUNT","RATE_DAILY","PERIOD"]
[348413233,1736521854290,-787.78,9.774e-05,2]
[348413234,1736521854301,-1132.2,9.774e-05,2]
[348413235,1736521854310,-4116.97,9.774e-05,2]
[348413236,1736521854319,-500.0,9.774e-05,2]
[348413237,1736521854329,-500.0,9.774e-05,2]
[348413238,1736521854338,-500.0,9.774e-05,2]
[348413239,1736521854348,-637.63,9.774e-05,2]
[348413240,1736521854357,-5408.58,9.774e-05,2]
[348413241,1736521854367,-625.29,9.774e-05,2]
[348413242,1736521854376,-500.0,9.774e-05,2]
[348413243,1736521854385,-834.69,9.774e-05,2]
[348413244,1736521854564,-500.0,9.774e-05,2]
[348413245,1736521854574,-783.6,9.774e-05,2]
[348413246,1736521854583,-1403.41,9.774e-05,2]
[348413247,1736521854593,-1122.38,9.774e-05,2]
[348413248,1736521854603,-1395.31,9.774e-05,2]
[348413249,1736521854612,-1336.51,9.774e-05,2]
[348413250,1736521854621,-2542.56,9.774e-05,2]
[348413251,1736521854630,-500.0,9.774e-05,2]
[348413252,1736521854639,-500.0,9.775e-05,2]
[348413253,1736521854649,-740.49,9.775e-05,2]
[348413254,1736521854658,-500.0,9.775e-05,2]
[348413255,1736521854667,-500.0,9.775e-05,2]
[348413256,1736521854677,-500.0,9.775e-05,2]
[348413257,1736521854686,-500.0,9.775e-05,2]
[348413258,1736521854695,-500.0,9.775e-05,2]
[348413259,1736521854704,-500.0,9.775e-05,2]
[348413260,1736521854714,-500.0,9.775e-05,2]
[348413261,1736521854723,-500.0,9.775e-05,2]
[348413262,1736521854733,-535.12998106,9.775e-05,2]
[348413263,1736521854742,-500.0,9.775e-05,2]
[348413264,1736521854752,-500.0,9.775e-05,2]
[348413265,1736521854761,-500.0,9.775e-05,2]
[348413266,1736521854770,-500.0,9.775e-05,2]
[348413267,1736521854779,-500.0,9.775e-05,2]
[348413268,1736521854788,-500.0,9.775e-05,2]
[348413269,1736521854799,-500.0,9.775e-05,2]
[348413270,1736521854807,-500.0,9.775e-05,2]
[348413271,1736521854817,-500.0,9.775e-05,2]
[348413272,1736521854827,-500.0,9.775e-05,2]
[348413273,1736521854836,-500.0,9.775e-05,2]
[348413274,1736521854845,-500.0,9.775e-05,2]
[348413275,1736521854854,-500.0,9.775e-05,2]
[348413276,1736521854863,-508.12876591,9.775e-05,2]
[348413277,1736521854872,-500.0,9.775e-05,2]
[348413278,1736521854881,-500.0,9.775e-05,2]
[348413279,1736521854890,-500.0,9.775e-05,2]
[348413280,1736521854899,-500.0,9.775e-05,2]
[348413281,1736521854908,-500.0,9.775e-05,2]
[348413282,1736521854916,-501.61734071,9.775e-05,2]
[348413283,1736521854925,-500.0,9.775e-05,2]
[348413284,1736521854934,-500.0,9.775e-05,2]
[348413285,1736521854942,-500.0,9.775e-05,2]
[348413286,1736521854951,-500.36818709,9.775e-05,2]
[348413287,1736521854960,-500.0,9.775e-05,2]
[348413288,1736521854968,-201.52211186,9.775e-05,2]
[348413289,1736521854977,-500.0,9.775e-05,2]
[348413290,1736521854986,-500.0,9.775e-05,2]
[348413291,1736521854996,-500.0,9.775e-05,2]
[348413292,1736521855006,-500.0,9.775e-05,2]
[348413293,1736521855015,-500.0,9.775e-05,2]
[348413294,1736521855025,-500.0,9.775e-05,2]
[348413295,1736521855035,-500.0,9.775e-05,2]
[348413296,1736521855044,-500.0,9.775e-05,2]
[348413297,1736521855057,-719.56,9.775e-05,2]
[348413298,1736521855067,-500.0,9.775e-05,2]
[348413299,1736521855076,-500.0,9.775e-05,2]
[348413300,1736521855087,-500.0,9.775e-05,2]
[348413301,1736521855097,-500.0,9.775e-05,2]
[348413302,1736521855106,-500.0,9.775e-05,2]
[348413303,1736521855116,-500.0,9.775e-05,2]
[348413304,1736521855126,-500.0,9.775e-05,2]
[348413305,1736521855138,-500.0,9.775e-05,2]
[348413306,1736521855147,-500.0,9.775e-05,2]
[348413307,1736521855158,-500.0,9.775e-05,2]
[348413308,1736521855167,-500.0,9.775e-05,2]
[348413309,1736521855177,-500.0,9.775e-05,2]
[348413310,1736521855187,-500.0,9.775e-05,2]
[348413311,1736521855196,-500.0,9.775e-05,2]
[348413312,1736521855205,-500.0,9.775e-05,2]
[348413313,1736521855216,-500.0,9.775e-05,2]
[348413314,1736521855226,-500.0,9.775e-05,2]
[348413315,1736521855236,-500.0,9.775e-05,2]
[348413316,1736521855245,-500.0,9.775e-05,2]
[348413317,1736521855255,-500.0,9.775e-05,2]
[348413318,1736521855264,-500.0,9.775e-05,2]
[348413319,1736521855274,-500.0,9.775e-05,2]
[348413320,1736521855283,-500.0,9.775e-05,2]
[348413321,1736521855292,-500.0,9.775e-05,2]
[348413322,1736521855305,-500.0,9.775e-05,2]
[348413323,1736521855314,-500.0,9.775e-05,2]
[348413324,1736521855324,-522.94,9.775e-05,2]
[348413325,1736521855335,-500.0,9.775e-05,2]
[348413326,1736521855344,-500.0,9.775e-05,2]
[348413327,1736521855354,-500.0,9.775e-05,2]
[348413328,1736521855363,-500.0,9.775e-05,2]
[348413329,1736521855373,-500.0,9.775e-05,2]
[348413330,1736521855382,-500.0,9.775e-05,2]
[348413331,1736521855391,-500.0,9.775e-05,2]
[348413332,1736521855401,-500.0,9.775e-05,2]
[348413333,1736521855412,-500.0,9.775e-05,2]
[348413334,1736521855421,-500.0,9.775e-05,2]
[348413335,1736521855430,-500.0,9.775e-05,2]
[348413336,1736521855440,-500.0,9.775e-05,2]
[348413337,1736521855449,-586.59166711,9.775e-05,2]
[348413338,1736521855459,-500.0,9.775e-05,2]
[348413339,1736521855468,-500.0,9.775e-05,2]
[348413340,1736521855479,-500.0,9.775e-05,2]
[348413341,1736521855488,-500.0,9.775e-05,2]
[348413342,1736521855497,-500.0,9.775e-05,2]
[348413343,1736521855506,-500.0,9.775e-05,2]
[348413344,1736521855516,-500.0,9.775e-05,2]
[348413345,1736521855525,-500.0,9.775e-05,2]
[348413346,1736521855534,-701.3,9.775e-05,2]
[348413347,1736521855543,-500.0,9.775e-05,2]
[348413348,1736521855556,-500.41754991,9.775e-05,2]
[348413349,1736521855566,-500.0,9.775e-05,2]
[348413350,1736521855575,-500.0,9.775e-05,2]
[348413351,1736521855584,-500.0,9.775e-05,2]
[348413352,1736521855594,-500.0,9.775e-05,7]
[348413353,1736521855603,-500.0,9.775e-05,2]
[348413354,1736521855613,-500.0,9.775e-05,2]
[348413355,1736521855622,-500.0,9.775e-05,2]
[348413356,1736521855631,-500.0,9.775e-05,2]
[348413357,1736521855640,-156.13948592,9.775e-05,2]
[348413358,1736521855650,-500.0,9.775e-05,2]
[348413359,1736521855659,-500.0,9.775e-05,2]
[348413360,1736521855668,-500.0,9.775e-05,2]
[348413361,1736521855677,-500.0,9.775e-05,2]
[348413362,1736521855687,-500.0,9.775e-05,2]
[348413363,1736521855697,-500.0,9.775e-05,2]
[348413364,1736521855706,-500.0,9.775e-05,2]
[348413365,1736521855717,-500.92485034,9.775e-05,2]
[348413366,1736521855727,-500.0,9.775e-05,2]
[348413367,1736521855737,-500.0,9.775e-05,2]
[348413368,1736521855747,-500.0,9.775e-05,2]
[348413369,1736521855757,-500.0,9.775e-05,2]
[348413370,1736521855767,-500.0,9.775e-05,2]
[348413371,1736521855777,-500.0,9.775e-05,2]
[348413372,1736521855787,-500.0,9.775e-05,2]
[348413373,1736521855800,-300.0,9.775e-05,2]
[348413374,1736521855810,-500.0,9.775e-05,2]
[348413375,1736521855820,-500.0,9.775e-05,2]
[348413376,1736521855830,-500.0,9.775e-05,2]
[348413377,1736521855839,-500.0,9.775e-05,2]
[348413378,1736521855849,-502.8200631,9.775e-05,2]
[348413379,1736521855859,-500.0,9.775e-05,2]
[348413380,1736521855869,-500.0,9.775e-05,2]
[348413381,1736521855879,-444.0801414,9.775e-05,2]
[348413382,1736521855888,-500.0,9.775e-05,2]
[348413383,1736521855898,-503.31637706,9.775e-05,2]
[348413384,1736521855907,-500.0,9.775e-05,2]
[348413385,1736521855917,-500.0,9.775e-05,2]
[348413386,1736521855927,-500.0,9.775e-05,2]
[348413387,1736521855936,-789.15,9.775e-05,2]
[348413388,1736521855946,-500.0,9.775e-05,2]
[348413389,1736521855956,-553.77560013,9.775e-05,2]
[348413390,1736521855966,-500.0,9.775e-05,2]
[348413391,1736521855975,-500.0,9.775e-05,2]
[348413392,1736521855984,-500.0,9.775e-05,2]
[348413393,1736521855994,-500.0,9.775e-05,2]
[348413394,1736521856004,-500.0,9.775e-05,2]
[348413395,1736521856013,-500.0,9.775e-05,2]
[348413396,1736521856023,-500.0,9.775e-05,2]
[348413397,1736521856032,-500.0,9.775e-05,2]
[348413398,1736521856041,-500.0,9.775e-05,2]
[348413399,1736521856054,-500.0,9.775e-05,2]
[348413400,1736521856063,-500.0,9.775e-05,2]
[348413401,1736521856073,-500.0,9.775e-05,2]
[348413402,1736521856082,-500.0,9.775e-05,2]
[348413403,1736521856092,-500.0,9.775e-05,2]
[348413404,1736521856102,-500.0,9.775e-05,2]
[348413405,1736521856111,-500.0,9.775e-05,2]
[348413406,1736521856121,-500.0,9.775e-05,2]
[348413407,1736521856131,-783.5,9.775e-05,2]
[348413408,1736521856144,-500.0,9.775e-05,2]
[348413409,1736521856154,-500.0,9.775e-05,2]
[348413410,1736521856164,-500.0,9.775e-05,2]
[348413411,1736521856174,-500.0,9.775e-05,2]
[348413412,1736521856183,-500.0,9.775e-05,2]
[348413413,1736521856193,-500.0,9.775e-05,2]
[348413414,1736521856203,-500.0,9.775e-05,2]
[348413415,1736521856213,-500.0,9.775e-05,2]
[348413416,1736521856223,-502.34283552,9.775e-05,2]
[348413417,1736521856232,-500.0,9.775e-05,2]
[348413418,1736521856241,-500.0,9.775e-05,2]
[348413419,1736521856251,-500.0,9.775e-05,2]
[348413420,1736521856261,-500.0,9.775e-05,2]
[348413421,1736521856270,-500.0,9.775e-05,2]
[348413422,1736521856279,-500.0,9.775e-05,2]
[348413423,1736521856289,-500.0,9.775e-05,2]
[348413424,1736521856300,-500.0,9.775e-05,2]
[348413425,1736521856310,-500.0,9.775e-05,2]
[348413426,1736521856319,-500.0,9.775e-05,2]
[348413427,1736521856331,-500.0,9.775e-05,2]
[348413428,1736521856340,-500.0,9.775e-05,2]
[348413429,1736521856350,-500.0,9.775e-05,2]
[348413430,1736521856360,-500.0,9.775e-05,2]
[348413431,1736521856370,-500.0,9.775e-05,2]
[348413432,1736521856380,-500.0,9.775e-05,2]
[348413433,1736521856390,-500.0,9.775e-05,2]
[348413434,1736521856401,-500.0,9.775e-05,2]
[348413435,1736521856411,-500.0,9.775e-05,2]
[348413436,1736521856420,-500.0,9.775e-05,2]
[348413437,1736521856430,-500.0,9.775e-05,2]
[348413438,1736521856439,-315.96533802,9.775e-05,2]
[348413439,1736521856449,-500.0,9.775e-05,2]
[348413440,1736521856458,-500.0,9.775e-05,2]
[348413441,1736521856467,-272.80213615,9.775e-05,2]
[348413442,1736521856477,-500.0,9.775e-05,2]
[348413443,1736521856486,-315.88579148,9.775e-05,2]
[348413444,1736521856495,-500.0,9.775e-05,2]
[348413445,1736521856505,-500.0,9.775e-05,2]
[348413446,1736521856514,-315.06386984,9.775e-05,2]
[348413447,1736521856523,-639.94206324,9.775e-05,2]
[348413448,1736521856532,-207.47079704,9.775e-05,2]
[348413449,1736521856541,-500.0,9.775e-05,2]
[348413450,1736521856554,-315.76837952,9.775e-05,2]
[348413451,1736521856563,-500.0,9.775e-05,2]
[348413452,1736521856573,-500.0,9.775e-05,2]
[348413453,1736521856582,-500.0,9.775e-05,2]
[348413454,1736521856592,-500.0,9.775e-05,2]
[348413455,1736521856601,-500.0,9.775e-05,2]
[348413456,1736521856611,-500.72400807,9.775e-05,2]
[348413457,1736521856620,-500.0,9.775e-05,2]
[348413458,1736521856631,-500.0,9.775e-05,2]
[348413459,1736521856641,-500.0,9.775e-05,2]
[348413460,1736521856650,-500.0,9.775e-05,2]
[348413461,1736521856660,-500.0,9.775e-05,2]
[348413462,1736521856669,-500.0,9.775e-05,2]
[348413463,1736521856679,-501.5979049,9.775e-05,2]
[348413464,1736521856688,-500.0,9.775e-05,2]
[348413465,1736521856698,-500.0,9.775e-05,2]
[348413466,1736521856707,-501.24061431,9.775e-05,2]
[348413467,1736521856717,-500.0,9.775e-05,2]
[348413468,1736521856726,-500.0,9.775e-05,2]
[348413469,1736521856735,-500.0,9.775e-05,2]
[348413470,1736521856745,-500.0,9.775e-05,2]
[348413471,1736521856755,-500.0,9.775e-05,2]
[348413472,1736521856764,-500.0,9.775e-05,2]
[348413473,1736521856775,-500.0,9.775e-05,2]
[348413474,1736521856785,-500.0,9.775e-05,2]
[348413475,1736521856795,-500.0,9.775e-05,2]
[348413476,1736521856807,-500.0,9.775e-05,2]
[348413477,1736521856816,-500.0,9.775e-05,2]
[348413478,1736521856825,-503.17696434,9.775e-05,2]
[348413479,1736521856834,-627.35291952,9.775e-05,2]
[348413480,1736521856843,-500.0,9.775e-05,2]
[348413481,1736521856853,-500.0,9.775e-05,2]
[348413482,1736521856862,-500.0,9.775e-05,2]
[348413483,1736521856871,-500.0,9.775e-05,2]
[348413484,1736521856881,-500.0,9.775e-05,2]
[348413485,1736521856890,-500.0,9.775e-05,2]
[348413486,1736521856899,-500.0,9.775e-05,2]
[348413487,1736521856909,-500.0,9.775e-05,2]
[348413488,1736521856918,-500.0,9.775e-05,2]
[348413489,1736521856928,-500.0,9.775e-05,2]
[348413490,1736521856938,-500.0,9.775e-05,2]
[348413491,1736521856947,-500.0,9.775e-05,2]
[348413492,1736521856956,-500.0,9.775e-05,2]
[348413493,1736521856965,-500.0,9.775e-05,2]
[348413494,1736521856975,-500.0,9.775e-05,2]
[348413495,1736521856984,-500.0,9.775e-05,2]
[348413496,1736521856993,-500.84316725,9.775e-05,2]
[348413497,1736521857003,-500.0,9.775e-05,2]
[348413498,1736521857012,-561.76338717,9.775e-05,2]
[348413499,1736521857022,-500.0,9.775e-05,2]
[348413500,1736521857032,-500.0,9.775e-05,2]
[348413501,1736521857041,-500.0,9.775e-05,2]
[348413502,1736521857052,-500.0,9.775e-05,2]
[348413503,1736521857062,-500.0,9.775e-05,2]
[348413504,1736521857071,-500.0,9.775e-05,2]
[348413505,1736521857081,-500.0,9.775e-05,2]
[348413506,1736521857090,-500.0,9.775e-05,2]
[348413507,1736521857100,-500.0,9.775e-05,2]
[348413508,1736521857109,-500.0,9.775e-05,2]
[348413509,1736521857119,-500.0,9.775e-05,2]
[348413510,1736521857129,-500.0,9.775e-05,2]
[348413511,1736521857143,-500.0,9.775e-05,2]
[348413512,1736521857152,-500.0,9.775e-05,2]
[348413513,1736521857161,-500.0,9.775e-05,2]
[348413514,1736521857170,-500.0,9.775e-05,2]
[348413515,1736521857180,-500.0,9.775e-05,2]
[348413516,1736521857189,-500.66514229,9.775e-05,2]
[348413517,1736521857199,-500.0,9.775e-05,2]
[348413518,1736521857208,-314.41910211,9.775e-05,2]
[348413519,1736521857218,-150.0,9.775e-05,2]
[348413520,1736521857227,-500.0,9.775e-05,2]
[348413521,1736521857237,-500.0,9.775e-05,2]
[348413522,1736521857246,-5000.0,9.775e-05,2]
[348413523,1736521857255,-500.0,9.775e-05,2]
[348413524,1736521857264,-500.0,9.775e-05,2]
[348413525,1736521857274,-501.43254005,9.775e-05,2]
[348413526,1736521857283,-500.0,9.775e-05,2]
[348413527,1736521857292,-500.0,9.775e-05,2]
[348413528,1736521857304,-500.0,9.775e-05,2]
[348413529,1736521857314,-506.01377291,9.775e-05,2]
[348413530,1736521857323,-500.0,9.775e-05,2]
[348413531,1736521857333,-567.28,9.775e-05,2]
[348413532,1736521857342,-500.0,9.775e-05,2]
[348413533,1736521857351,-500.0,9.775e-05,2]
[348413534,1736521857360,-500.62773334,9.775e-05,2]
[348413535,1736521857369,-500.0,9.775e-05,2]
[348413536,1736521857379,-500.0,9.775e-05,2]
[348413537,1736521857388,-587.33,9.775e-05,2]
[348413538,1736521857397,-500.0,9.775e-05,2]
[348413539,1736521857407,-500.0,9.775e-05,2]
[348413540,1736521857417,-500.0,9.775e-05,2]
[348413541,1736521857426,-500.0,9.775e-05,2]
[348413542,1736521857435,-500.0,9.775e-05,2]
[348413543,1736521857445,-500.0,9.775e-05,2]
[348413544,1736521857454,-500.0,9.775e-05,2]
[348413545,1736521857463,-500.0,9.775e-05,2]
[348413546,1736521857471,-501.41735268,9.775e-05,2]
[348413547,1736521857481,-500.0,9.775e-05,2]
[348413548,1736521857490,-500.0,9.775e-05,2]
[348413549,1736521857499,-663.33,9.775e-05,2]
[348413550,1736521857508,-500.0,9.775e-05,2]
[348413551,1736521857517,-500.0,9.775e-05,2]
[348413552,1736521857527,-500.0,9.775e-05,2]
[348413553,1736521857536,-500.0,9.775e-05,2]
[348413554,1736521857545,-500.0,9.775e-05,2]
[348413555,1736521857556,-500.0,9.775e-05,2]
[348413556,1736521857566,-707.76,9.776e-05,2]
[348413557,1736521857574,-1455.15,9.776e-05,2]
[348413558,1736521857584,-947.61,9.776e-05,2]
[348413559,1736521857593,-1120.52,9.776e-05,2]
[348413560,1736521857602,-1207.82,9.776e-05,2]
[348413561,1736521857611,-1716.24,9.776e-05,2]
[348413562,1736521857620,-2173.8,9.776e-05,2]
[348413563,1736521857629,-2039.54,9.776e-05,2]
[348413564,1736521857797,-3936.9,9.776e-05,2]
[348413565,1736521857808,-503.86448063,9.778e-05,2]
[348413566,1736521857818,-500.91049735,9.778e-05,2]
[348413567,1736521857827,-500.0,9.778e-05,2]
[348413568,1736521857836,-386.95459117,9.778e-05,2]
[348413569,1736521857845,-500.0,9.778e-05,2]
[348413570,1736521857853,-500.0,9.778e-05,2]
[348413571,1736521857862,-500.0,9.778e-05,2]
[348413572,1736521857872,-500.23617734,9.778e-05,2]
[348413573,1736521857881,-300.0,9.778e-05,2]
[348413574,1736521857890,-500.0,9.778e-05,2]
[348413575,1736521857899,-500.0,9.778e-05,2]
[348413576,1736521857909,-302.41714979,9.778e-05,2]
[348413577,1736521857918,-501.37005643,9.778e-05,2]
[348413578,1736521857927,-503.83550883,9.778e-05,2]
[348413579,1736521857937,-500.0,9.778e-05,2]
[348413580,1736521857947,-500.0,9.778e-05,2]
[348413581,1736521857957,-500.0,9.778e-05,2]
[348413582,1736521857967,-500.87411358,9.778e-05,2]
[348413583,1736521857977,-500.0,9.778e-05,2]
[348413584,1736521857987,-500.30131628,9.778e-05,2]
[348413585,1736521857997,-500.0,9.778e-05,2]
[348413586,1736521858006,-500.0,9.778e-05,2]
[348413587,1736521858015,-338.15012263,9.778e-05,2]
[348413588,1736521858024,-500.65651366,9.778e-05,2]
[348413589,1736521858034,-643.34439269,9.778e-05,2]
[348413590,1736521858043,-500.99193114,9.778e-05,2]
[348413591,1736521858054,-500.0,9.778e-05,2]
[348413592,1736521858064,-501.3695328,9.778e-05,2]
[348413593,1736521858073,-500.0,9.778e-05,2]
[348413594,1736521858083,-500.0,9.778e-05,2]
[348413595,1736521858092,-500.0,9.778e-05,2]
[348413596,1736521858102,-349.73293714,9.778e-05,2]
[348413597,1736521858111,-500.0,9.778e-05,2]
[348413598,1736521858121,-500.49418149,9.778e-05,2]
[348413599,1736521858130,-365.20489989,9.778e-05,2]
[348413600,1736521858145,-500.0,9.778e-05,2]
[348413601,1736521858155,-500.0,9.778e-05,2]
[348413602,1736521858165,-1000.0,9.778e-05,2]
[348413603,1736521858175,-500.43829197,9.778e-05,2]
[348413604,1736521858185,-500.0,9.778e-05,2]
[348413605,1736521858194,-500.0,9.778e-05,2]
[348413606,1736521858203,-500.0,9.778e-05,2]
[348413607,1736521858213,-500.0,9.778e-05,2]
[348413608,1736521858223,-500.0,9.778e-05,2]
[348413609,1736521858233,-618.52,9.778e-05,2]
[348413610,1736521858242,-500.0,9.778e-05,2]
[348413611,1736521858251,-641.91987874,9.778e-05,2]
[348413612,1736521858261,-500.0,9.778e-05,2]
[348413613,1736521858270,-500.0,9.778e-05,2]
[348413614,1736521858279,-500.0,9.778e-05,2]
[348413615,1736521858289,-500.0,9.778e-05,2]
[348413616,1736521858300,-500.0,9.778e-05,2]
[348413617,1736521858309,-521.4,9.778e-05,2]
[348413618,1736521858318,-638.69,9.778e-05,2]
[348413619,1736521858328,-504.99547243,9.778e-05,2]
[348413620,1736521858337,-500.0,9.778e-05,2]
[348413621,1736521858347,-1043.64,9.778e-05,2]
[348413622,1736521858356,-777.09,9.778e-05,2]
[348413623,1736521858366,-595.39,9.778e-05,2]
[348413624,1736521858375,-502.19890185,9.778e-05,2]
[348413625,1736521858384,-508.17425266,9.778e-05,2]
[348413626,1736521858393,-595.85,9.778e-05,2]
[348413627,1736521858403,-500.0,9.778e-05,2]
[348413628,1736521858413,-1176.46,9.778e-05,2]
[348413629,1736521858422,-746.6,9.778e-05,2]
[348413630,1736521858432,-715.52,9.778e-05,2]
[348413631,1736521858442,-809.21,9.778e-05,2]
[348413632,1736521858451,-1174.04,9.778e-05,2]
[348413633,1736521858462,-500.0,9.778e-05,2]
[348413634,1736521858471,-1255.29,9.778e-05,2]
[348413635,1736521858481,-958.58,9.778e-05,2]
[348413636,1736521858490,-821.75,9.778e-05,2]
[348413637,1736521858499,-1196.03,9.778e-05,2]
[348413638,1736521858508,-913.87,9.778e-05,2]
[348413639,1736521858517,-500.0,9.778e-05,2]
[348413640,1736521858526,-774.48,9.778e-05,2]
[348413641,1736521858535,-531.04696606,9.778e-05,2]
[348413642,1736521858544,-500.0,9.778e-05,2]
[348413643,1736521858554,-500.0,9.778e-05,2]
[348413644,1736521858563,-1351.14,9.778e-05,2]
[348413645,1736521858573,-959.16,9.778e-05,2]
[348413646,1736521858582,-1264.13,9.778e-05,2]
[348413647,1736521858591,-500.0,9.778e-05,2]
[348413648,1736521858600,-1453.85,9.778e-05,2]
[348413649,1736521858609,-500.0,9.778e-05,2]
[348413650,1736521858618,-876.49,9.778e-05,2]
[348413651,1736521858627,-500.0,9.778e-05,2]
[348413652,1736521858635,-1059.18,9.778e-05,2]
[348413653,1736521858644,-500.0,9.778e-05,2]
[348413654,1736521858654,-500.0,9.778e-05,2]
[348413655,1736521858663,-598.05,9.778e-05,2]
[348413656,1736521858672,-500.0,9.778e-05,2]
[348413657,1736521858681,-8453.27,9.778e-05,2]
[348413658,1736521858691,-1540.91,9.778e-05,2]
[348413659,1736521858700,-1086.75,9.778e-05,2]
[348413660,1736521858709,-151.802,9.785e-05,2]
[348413661,1736521858719,-589.369,9.785e-05,2]
[348413662,1736521858728,-639.196,9.785e-05,2]
[348413663,1736521858738,-1861.0,9.785e-05,2]
[348413664,1736521858747,-820.0,9.785e-05,2]
[348413665,1736521858757,-538.339,9.785e-05,2]
[348413666,1736521858767,-2944.0,9.785e-05,2]
[348413667,1736521858777,-537.0,9.785e-05,2]
[348413668,1736521858786,-3977.0,9.785e-05,2]
[348413669,1736521858796,-500.0,9.795e-05,2]
[348413670,1736521858811,-1232.57,9.796e-05,2]
[348413671,1736521858820,-562.76,9.796e-05,2]
[348413672,1736521858830,-1207.49,9.796e-05,2]
[348413673,1736521858841,-1827.43,9.796e-05,2]
[348413674,1736521858851,-1374.1,9.796e-05,2]
[348413675,1736521858860,-1857.07,9.796e-05,2]
[348413676,1736521858870,-1432.55,9.796e-05,2]
[348413677,1736521858880,-500.0,9.796e-05,2]
[348413678,1736521858890,-1557.15,9.796e-05,2]
[348413679,1736521858899,-1511.76,9.796e-05,2]
[348413680,1736521858908,-605.65,9.796e-05,2]
[348413681,1736521858917,-500.49217752,9.796e-05,2]
[348413682,1736521858926,-3068.36,9.796e-05,2]
[348413683,1736521858935,-414.22278414,9.798e-05,2]
[348413684,1736521858945,-9617.0,9.822e-05,2]
[348413685,1736521858955,-150.0,9.822e-05,2]
[348413686,1736521858964,-1173.0,9.822e-05,2]
[348413687,1736521858973,-3896.0,9.822e-05,2]
[348413688,1736521858983,-500.0,9.835e-05,2]
[348413689,1736521858992,-502.61109831,9.835e-05,2]
[348413690,1736521859002,-157.77249284,9.835e-05,2]
[348413691,1736521859012,-501.43689111,9.835e-05,2]
[348413692,1736521859021,-500.0,9.835e-05,2]
[348413693,1736521859030,-500.0,9.835e-05,2]
[348413694,1736521859040,-500.0,9.835e-05,2]
[348413695,1736521859052,-1209.28,9.835e-05,2]
[348413696,1736521859061,-500.0,9.835e-05,2]
[348413697,1736521859071,-500.0,9.835e-05,2]
[348413698,1736521859080,-500.0,9.835e-05,2]
[348413699,1736521859090,-500.0,9.835e-05,2]
[348413700,1736521859099,-503.62524657,9.835e-05,2]
[348413701,1736521859109,-500.0,9.835e-05,2]
[348413702,1736521859118,-500.0,9.835e-05,2]
[348413703,1736521859128,-500.0,9.835e-05,2]
[348413704,1736521859142,-500.0,9.835e-05,2]
[348413705,1736521859151,-500.0,9.835e-05,2]
[348413706,1736521859160,-1139.4,9.835e-05,2]
[348413707,1736521859170,-500.0,9.835e-05,2]
[348413708,1736521859179,-972.58,9.835e-05,2]
[348413709,1736521859188,-861.62,9.835e-05,2]
[348413710,1736521859197,-1025.69,9.835e-05,2]
[348413711,1736521859207,-581.86,9.835e-05,2]
[348413712,1736521859217,-500.0,9.835e-05,2]
[348413713,1736521859228,-500.0,9.835e-05,2]
[348413714,1736521859237,-500.0,9.835e-05,2]
[348413715,1736521859247,-500.0,9.835e-05,2]
[348413716,1736521859256,-500.0,9.835e-05,2]
[348413717,1736521859265,-500.0,9.835e-05,2]
[348413718,1736521859275,-500.0,9.835e-05,2]
[348413719,1736521859284,-500.0,9.835e-05,2]
[348413720,1736521859293,-500.0,9.835e-05,2]
[348413721,1736521859306,-866.42,9.835e-05,2]
[348413722,1736521859315,-500.0,9.835e-05,2]
[348413723,1736521859324,-1092.0,9.835e-05,2]
[348413724,1736521859334,-500.0,9.835e-05,2]
[348413725,1736521859343,-500.0,9.835e-05,2]
[348413726,1736521859353,-500.0,9.835e-05,2]
[348413727,1736521859362,-1075.19,9.835e-05,2]
[348413728,1736521859372,-500.0,9.835e-05,2]
[348413729,1736521859381,-1060.57,9.835e-05,2]
[348413730,1736521859390,-500.0,9.835e-05,2]
[348413731,1736521859400,-500.0,9.835e-05,2]
[348413732,1736521859409,-500.0,9.835e-05,2]